bitfinex/quotes_ETHUSD_20250730
["timestamp","ask_amount","ask_price","bid_price","bid_amount"]
[1753906175183,0.042,3782.9,3782.8,9.1821]
[1753906175388,0.042,3782.9,3782.8,10.1501]
[1753906175728,0.042,3782.9,3782.8,9.79364446]
[1753906176103,0.042,3782.9,3782.8,12.79364446]
[1753906176711,0.042,3782.9,3782.8,12.99630691]
[1753906177323,0.042,3783.9,3782.8,12.99630691]
[1753906177324,0.042,3783.9,3783.7,0.7723]
[1753906177626,0.042,3783.9,3783.8,11.50266984]
[1753906177787,0.042,3783.9,3783.8,11.13470599]
[1753906179128,0.042,3783.9,3783.8,4.416]
[1753906179609,0.9933,3783.9,3783.8,4.415]
[1753906179811,0.9933,3783.9,3783.8,0.132]
[1753906180015,0.5111,3783.9,3783.8,4.415]
[1753906180216,0.042,3783.9,3783.8,4.415]
[1753906180528,0.5242,3783.9,3783.8,4.8565]
[1753906180732,0.9933,3783.9,3783.7,4.283]
[1753906180952,0.9513,3783.8,3783.7,4.283]
[1753906181392,0.9513,3783.8,3782.9,6.71870599]
[1753906181598,0.9513,3783.7,3783.0,0.86085684]
[1753906181911,0.9513,3783.6,3783.1,4.282]
[1753906182116,0.9513,3783.5,3783.1,4.282]
[1753906182317,0.9513,3783.4,3783.1,4.282]
[1753906182518,0.4691,3783.4,3783.1,4.282]
[1753906182723,0.4822,3783.3,3783.1,4.282]
[1753906182919,0.042,3783.9,3783.1,4.282]
[1753906183119,0.4822,3783.2,3783.1,4.282]
[1753906183324,0.5111,3783.9,3783.1,0.4282]
[1753906183546,0.4822,3783.4,3783.2,4.282]
[1753906183849,0.7674,3787.5,3783.6,2.79]
[1753906184140,0.24636209,3786.4,3785.9,0.55]
[1753906184338,0.24636209,3786.3,3786.1,3.55]
[1753906184538,0.4822,3787.3,3786.3,0.55]
[1753906184748,0.24619674,3787.2,3786.5,0.55]
[1753906184904,0.24619674,3787.2,3786.7,3.41309454]
[1753906185236,0.24619674,3787.1,3786.8,7.5791596]
[1753906185560,0.24619674,3787.0,3786.9,3.19068235]
[1753906185704,0.4822,3788.7,3786.8,11.52075208]
[1753906185705,0.24606369,3788.5,3787.8,2.64005491]
[1753906186061,0.4822,3788.7,3787.8,4.37]
[1753906186062,0.24606369,3788.4,3787.8,4.37]
[1753906186205,0.5091,3788.9,3787.8,5.3931]
[1753906186206,0.24606369,3788.3,3787.8,5.3931]
[1753906186426,0.24606369,3788.2,3787.8,5.888]
[1753906186607,0.04,3788.9,3787.8,5.888]
[1753906186608,0.04,3788.9,3787.8,8.888]
[1753906186914,0.04,3788.9,3787.8,11.52805491]
[1753906187102,0.04,3788.9,3787.8,8.888]
[1753906187309,0.04,3788.9,3787.8,17.04238206]
[1753906187641,0.04,3788.9,3788.1,0.55]
[1753906187802,0.04,3788.9,3788.8,7.26870599]
[1753906188000,0.04,3788.9,3788.8,12.10160599]
[1753906188241,0.04,3788.9,3788.8,11.09570599]
[1753906188719,0.04,3788.9,3788.8,14.28462931]
[1753906188923,0.04,3788.9,3788.8,11.28462931]
[1753906189217,0.04,3788.9,3788.8,0.23492332]
[1753906189406,0.04,3788.9,3788.8,4.377]
[1753906189859,0.9851,3788.9,3787.9,0.55]
[1753906190045,0.498,3788.8,3788.0,4.378]
[1753906190343,0.498,3788.8,3788.1,4.61434196]
[1753906190548,0.498,3788.8,3788.2,0.23434196]
[1753906190718,0.04,3788.9,3788.7,0.132]
[1753906190905,0.04,3788.9,3788.8,4.40539358]
[1753906191132,0.04,3788.9,3788.8,4.379]
[1753906191741,0.04,3788.9,3788.8,4.40539358]
[1753906191974,0.04,3788.9,3788.8,4.85913294]
[1753906192134,0.04,3788.9,3788.8,4.83273936]
[1753906192476,0.04,3788.9,3788.8,4.379]
[1753906193229,0.04,3788.9,3788.8,11.12409957]
[1753906193440,0.04,3788.9,3788.8,13.37020599]
[1753906193674,0.04,3788.9,3788.8,12.42000599]
[1753906193883,0.042,3788.9,3788.8,12.42000599]
[1753906194059,0.042,3788.9,3788.8,13.67520659]
[1753906194259,0.042,3788.9,3788.8,8.74620659]
[1753906194435,0.9871,3788.9,3788.7,0.132]
[1753906194636,0.9451,3788.8,3788.7,0.132]
[1753906194832,0.9451,3788.8,3788.7,4.499]
[1753906195563,0.9451,3788.8,3788.7,4.498]
[1753906195564,1.7214,3788.8,3788.7,4.498]
[1753906195935,1.7214,3788.8,3788.7,4.502]
[1753906196136,1.89819648,3788.8,3788.7,0.132]
[1753906196536,30.0,3788.7,3787.7,6.352]
[1753906196733,0.9451,3788.6,3788.1,0.132]
[1753906196972,0.9451,3788.5,3788.1,0.132]
[1753906197155,0.498,3788.4,3788.1,0.132]
[1753906197396,0.9451,3788.4,3788.1,0.132]
[1753906197872,0.9451,3788.3,3788.1,0.132]
[1753906198382,0.7763,3788.4,3788.1,0.132]
[1753906198383,0.9451,3788.2,3788.1,0.132]
[1753906198676,0.9451,3788.2,3787.7,4.366]
[1753906198863,0.9451,3788.1,3787.5,4.362]
[1753906199060,0.9451,3788.0,3787.9,0.132]
[1753906199264,0.19244197,3788.2,3787.9,0.132]
[1753906199481,0.9451,3788.0,3787.6,4.494]
[1753906199790,0.7763,3787.8,3787.6,4.494]
[1753906199946,0.9451,3787.7,3787.6,4.494]
[1753906201075,0.498,3787.7,3787.6,4.494]
[1753906201279,0.9451,3787.7,3787.6,4.494]
[1753906201493,0.9451,3787.7,3787.6,0.132]
[1753906201780,1.11724,3787.7,3787.5,0.132]
[1753906201964,0.7763,3787.8,3787.5,0.132]
[1753906202352,0.7763,3787.8,3787.7,0.132]
[1753906202687,1.2234,3788.2,3787.7,0.132]
[1753906202881,1.7214,3788.2,3787.7,0.132]
[1753906203043,1.7214,3788.2,3788.1,0.132]
[1753906203382,1.2743,3788.2,3788.1,0.132]
[1753906203581,0.498,3788.6,3788.1,0.132]
[1753906203785,0.498,3788.5,3788.1,0.132]
[1753906203988,0.7763,3788.7,3788.5,0.132]
[1753906204145,0.042,3788.9,3788.4,4.483]
[1753906204348,0.54,3788.9,3788.6,0.132]
[1753906204647,0.54,3788.9,3788.5,4.351]
[1753906204648,0.042,3788.9,3788.8,0.132]
[1753906204984,0.042,3788.9,3788.8,3.9485581]
[1753906205171,0.042,3788.9,3788.8,6.75955246]
[1753906205385,0.042,3788.9,3788.8,6.99384137]
[1753906205887,0.042,3788.9,3788.8,9.51104701]
[1753906206098,0.042,3788.9,3788.8,9.71430935]
[1753906206389,0.042,3788.9,3788.8,9.48002044]
[1753906206544,1e-08,3789.0,3788.9,6.94848844]
[1753906206748,1e-08,3789.0,3788.9,8.13310572]
[1753906207256,0.04,3790.9,3789.3,6.94820984]
[1753906207478,0.04,3790.9,3789.3,11.55762712]
[1753906207681,0.04,3790.9,3789.3,12.50782712]
[1753906207980,0.04,3790.9,3789.3,8.13282712]
[1753906208183,0.4871,3790.9,3789.3,14.25389037]
[1753906209087,0.498,3790.3,3789.3,7.66268053]
[1753906209445,0.498,3790.3,3789.3,11.01747309]
[1753906209648,0.498,3790.7,3789.3,9.26840984]
[1753906209852,0.04,3790.9,3789.3,12.26840984]
[1753906210248,0.04,3790.9,3789.3,18.61040984]
[1753906210557,0.04,3790.9,3789.8,3.18866167]
[1753906210757,0.04,3790.9,3789.8,5.49874118]
[1753906210978,0.04,3790.9,3789.8,8.50486167]
[1753906212108,0.4871,3790.9,3789.8,0.55]
[1753906212254,0.498,3790.8,3789.8,8.50286167]
[1753906212455,0.498,3790.8,3789.8,5.8642]
[1753906212786,0.498,3790.8,3789.8,8.50286167]
[1753906213151,0.498,3790.8,3789.8,10.02501844]
[1753906213602,0.04,3790.9,3789.8,10.78421844]
[1753906214189,0.04,3790.9,3789.8,13.78421844]
[1753906214808,0.04,3790.9,3789.8,5.92591844]
[1753906215108,0.538,3790.9,3789.8,12.38306167]
[1753906216011,0.538,3790.9,3789.8,9.38006167]
[1753906216383,0.04,3790.9,3789.8,5.03006167]
[1753906216588,0.04,3790.9,3789.8,9.38006167]
[1753906217381,0.04,3790.9,3789.8,8.42986167]
[1753906217608,0.4636,3790.5,3789.8,8.98672314]
[1753906218004,0.4636,3790.5,3789.8,9.97572314]
[1753906218404,0.4636,3790.5,3789.8,9.53672314]
[1753906219018,0.4636,3790.5,3789.8,6.89806147]
[1753906219213,0.4636,3790.5,3789.8,6.89306147]
[1753906219515,0.04,3790.9,3789.8,5.7862]
[1753906219516,0.4636,3790.2,3789.8,5.7862]
[1753906220320,0.4636,3790.2,3789.8,0.8912]
[1753906220621,0.5036,3789.9,3789.8,4.476]
[1753906220981,0.04,3789.9,3789.8,4.476]
[1753906221198,0.04,3789.9,3789.8,4.473]
[1753906222017,0.04,3789.9,3789.8,9.26644773]
[1753906222782,0.04,3789.9,3789.8,8.37284773]
[1753906223521,0.04,3789.9,3789.8,0.84318606]
[1753906223709,0.5036,3789.9,3789.8,4.468]
[1753906224104,0.934,3789.9,3789.8,4.468]
[1753906224325,0.5036,3789.9,3789.8,0.132]
[1753906224484,0.934,3789.9,3789.8,0.132]
[1753906224683,0.934,3789.9,3789.8,4.467]
[1753906225318,0.884,3789.9,3789.8,4.467]
[1753906225628,0.884,3789.9,3789.8,0.132]
[1753906225938,2.5262602,3789.9,3789.8,4.464]
[1753906226688,1.6708,3789.9,3789.8,4.464]
[1753906228505,1.6708,3789.9,3789.8,4.332]
[1753906230368,1.6708,3789.9,3789.3,6.344]
[1753906230535,0.7868,3789.9,3789.4,4.324]
[1753906230861,0.7868,3789.7,3788.1,6.382]
[1753906231015,0.7868,3789.7,3788.2,4.318]
[1753906231215,0.7868,3789.5,3788.2,4.318]
[1753906231474,0.894,3789.4,3788.2,0.19806114]
[1753906231615,0.7868,3789.5,3788.6,2.63948271]
[1753906231811,0.7868,3789.5,3788.7,5.23799427]
[1753906232028,0.7868,3789.5,3788.7,5.2116]
[1753906232239,0.7868,3789.5,3788.7,7.85101281]
[1753906232451,0.7868,3789.5,3788.8,3.68841319]
[1753906232623,0.4636,3789.6,3788.8,1.04905762]
[1753906234513,0.4636,3789.6,3788.7,4.318]
[1753906234913,0.4636,3789.6,3788.1,6.382]
[1753906235156,0.4304,3789.5,3788.1,6.382]
[1753906235313,1.2504,3789.4,3788.2,4.31]
[1753906235514,0.16808,3789.3,3788.2,4.31]
[1753906235825,0.894,3789.2,3788.2,4.31]
[1753906236151,0.4636,3789.1,3788.2,4.31]
[1753906236349,0.894,3789.1,3788.2,4.31]
[1753906236536,0.4636,3789.0,3788.8,0.001]
[1753906236848,0.894,3789.0,3788.9,4.31]
[1753906238453,0.894,3789.0,3788.9,0.132]
[1753906238652,1.2504,3789.0,3788.9,4.438]
[1753906238950,1.6808,3789.0,3788.9,4.438]
[1753906239455,1.84888,3789.0,3788.9,4.438]
[1753906242236,1.6808,3789.0,3788.9,4.438]
[1753906244376,1.6808,3789.0,3788.9,0.132]
[1753906244681,1.6808,3789.0,3788.8,0.133]
[1753906244879,0.7868,3789.0,3788.9,4.288]
[1753906245179,0.7868,3789.0,3788.8,0.001]
[1753906245345,0.894,3788.9,3788.8,0.001]
[1753906245546,1.07528,3788.9,3788.8,0.001]
[1753906247871,1.86208,3788.9,3788.8,0.001]
[1753906248083,1.6808,3788.9,3788.8,0.001]
[1753906248290,0.7868,3788.9,3788.8,0.001]
[1753906248792,0.7868,3788.9,3788.8,4.289]
[1753906248931,0.4594,3789.3,3788.8,4.289]
[1753906249134,0.7868,3789.4,3788.8,4.81209]
[1753906249351,0.7868,3789.8,3788.9,0.9419]
[1753906249766,0.7868,3789.8,3788.9,0.4631]
[1753906249990,0.9208,3789.7,3788.8,0.001]
[1753906250277,30.0,3789.6,3789.0,4.288]
[1753906250486,0.9208,3789.7,3789.1,4.288]
[1753906250487,2.57026461,3789.5,3789.1,4.288]
[1753906250630,1.7246202,3789.8,3789.1,4.288]
[1753906250967,0.9208,3789.7,3789.1,4.288]
[1753906251391,0.4594,3789.6,3789.1,4.288]
[1753906251760,0.4614,3789.5,3789.1,4.288]
[1753906251992,1.85954295,3789.8,3789.1,4.288]
[1753906252192,0.4594,3789.4,3789.1,4.288]
[1753906252393,0.92172275,3789.8,3789.1,4.288]
[1753906252394,0.7868,3789.8,3789.1,4.288]
[1753906252696,0.7868,3789.8,3789.2,0.9419]
[1753906253993,0.7868,3789.8,3789.1,4.288]
[1753906254303,0.4594,3789.7,3789.1,4.288]
[1753906254792,0.4594,3789.7,3788.8,0.001]
[1753906255008,0.4614,3789.6,3788.9,4.288]
[1753906255172,0.4594,3789.5,3788.9,4.288]
[1753906256086,0.7868,3789.8,3789.0,0.9419]
[1753906256908,1.2462,3789.8,3789.0,0.9419]
[1753906257202,2.4378802,3789.8,3789.0,0.9419]
[1753906257383,1.2462,3789.8,3788.8,0.001]
[1753906257584,0.9208,3789.7,3788.9,4.288]
[1753906257785,0.132,3789.5,3789.0,4.42]
[1753906257965,1.6729,3789.4,3789.0,4.42]
[1753906258165,1.10129,3789.3,3789.1,4.288]
[1753906258498,0.18049,3789.3,3789.1,4.288]
[1753906258801,0.7521,3789.4,3789.2,0.132]
[1753906259193,0.7521,3789.4,3789.3,4.287]
[1753906259393,3.7541,3789.9,3789.3,4.287]
[1753906260029,0.7541,3789.9,3789.6,0.132]
[1753906260367,0.4594,3789.8,3789.6,0.132]
[1753906260991,0.4594,3789.7,3789.6,0.132]
[1753906261269,0.4594,3789.7,3789.6,4.42]
[1753906261588,0.9208,3789.7,3789.6,4.42]
[1753906261793,0.4594,3789.7,3789.6,4.42]
[1753906261997,0.4594,3789.7,3789.6,0.132]
[1753906262202,1.89937122,3789.7,3789.6,0.132]
[1753906262381,1.89937122,3789.7,3789.2,0.132]
[1753906262590,0.97857122,3789.7,3789.6,4.287]
[1753906263185,1.89937122,3789.7,3789.6,4.287]
[1753906263620,0.97857122,3789.7,3789.2,0.132]
[1753906263795,3.7541,3789.9,3789.5,4.287]
[1753906264112,0.9208,3789.8,3789.5,4.287]
[1753906264502,30.0,3789.6,3789.5,4.287]
[1753906264825,3.49106461,3789.6,3789.5,4.287]
[1753906265030,0.9208,3789.6,3789.5,4.287]
[1753906265679,0.9208,3789.6,3789.3,0.132]
[1753906265892,0.4594,3789.5,3789.4,4.287]
[1753906267571,0.5914,3789.8,3789.4,4.287]
[1753906267767,30.0,3789.8,3789.4,4.287]
[1753906267986,3.49106461,3789.7,3789.4,4.287]
[1753906268186,0.9208,3789.6,3789.4,4.287]
[1753906269189,0.4594,3789.5,3789.4,4.287]
[1753906269674,0.9208,3789.5,3789.4,4.287]
[1753906270690,0.4594,3789.5,3789.4,4.287]
[1753906271114,0.4594,3789.5,3788.8,0.001]
[1753906271416,0.4594,3789.5,3788.9,4.287]
[1753906271590,3.7541,3789.9,3788.9,0.7835]
[1753906271788,30.0,3789.5,3789.0,4.286]
[1753906272310,0.4594,3789.5,3789.0,4.286]
[1753906273212,0.4594,3789.5,3789.0,5.2279]
[1753906273777,0.4594,3789.5,3789.0,0.9419]
[1753906274080,0.4594,3789.5,3789.1,4.286]
[1753906274280,0.4594,3789.5,3789.2,4.286]
[1753906274481,0.4594,3789.4,3789.3,4.286]
[1753906274683,0.4614,3789.7,3789.3,4.286]
[1753906274919,0.4594,3789.6,3789.4,4.286]
[1753906276209,0.4614,3789.7,3789.4,4.286]
[1753906276517,0.4594,3789.5,3789.4,4.286]
[1753906276928,1.1886102,3789.7,3789.4,4.286]
[1753906277151,3.7541,3789.9,3789.4,4.286]
[1753906277281,3.7541,3789.9,3789.5,0.9494]
[1753906277636,3.002,3789.9,3789.6,0.9494]
[1753906277838,3.002,3789.9,3789.5,0.493]
[1753906277989,4.5694302,3789.9,3789.4,4.286]
[1753906278478,0.4547,3789.8,3789.4,4.286]
[1753906278677,0.4547,3789.7,3789.4,4.286]
[1753906279421,3.0,3789.4,3788.8,0.001]
[1753906279595,30.0,3789.1,3788.8,0.001]
[1753906279795,33.132,3788.9,3788.8,0.001]
[1753906280319,3.0,3788.9,3788.8,0.001]
[1753906280493,3.0,3788.9,3788.8,0.133]
[1753906280821,0.7521,3789.2,3788.8,0.133]
[1753906281119,0.7521,3789.2,3788.8,1.0824]
[1753906281422,0.4547,3789.4,3789.1,0.132]
[1753906281616,3.7521,3789.5,3789.1,0.132]
[1753906281617,0.7521,3789.5,3789.1,0.132]
[1753906281838,30.9174,3789.4,3788.9,0.132]
[1753906281983,0.132,3789.2,3788.8,4.286]
[1753906282187,3.48766461,3789.1,3788.8,4.286]
[1753906282390,0.9174,3789.0,3788.8,0.001]
[1753906282621,0.9174,3789.0,3788.8,4.286]
[1753906282795,0.9174,3788.9,3788.8,4.286]
[1753906283001,0.9174,3788.9,3788.8,3.786]
[1753906283802,0.9174,3788.9,3788.6,0.132]
[1753906284125,0.4547,3788.9,3788.6,0.132]
[1753906284899,0.7521,3788.8,3788.6,0.132]
[1753906285110,1.2068,3788.8,3788.6,0.132]
[1753906285312,0.62165,3788.7,3788.6,0.132]
[1753906287811,0.4627,3789.1,3788.6,0.132]
[1753906287812,0.9594,3789.2,3788.6,0.132]
[1753906288030,0.132,3789.4,3788.6,1.0814]
[1753906288225,0.132,3789.4,3788.9,0.132]
[1753906288550,0.928344,3789.5,3789.0,5.2334]
[1753906288763,0.928344,3789.5,3789.3,0.132]
[1753906288961,0.8410284,3789.4,3789.3,0.132]
[1753906289130,1.7584284,3789.4,3789.3,0.132]
[1753906289518,1.2957284,3789.4,3789.3,0.132]
[1753906289945,1.7584284,3789.4,3788.9,4.284]
[1753906290152,0.9730284,3789.4,3788.9,4.416]
[1753906290357,1.14549684,3789.3,3788.9,4.284]
[1753906290661,0.4647,3789.9,3788.9,4.284]
[1753906290662,3.002,3789.9,3789.2,0.132]
[1753906290870,0.002,3789.9,3789.3,0.9494]
[1753906291165,0.002,3789.9,3789.7,0.132]
[1753906291166,3.002,3789.9,3789.7,0.132]
[1753906291469,0.28178451,3789.9,3789.7,0.132]
[1753906291968,3.28178451,3789.9,3789.7,0.132]
[1753906293331,3.73648451,3789.9,3789.7,0.132]
[1753906293847,0.4547,3789.8,3789.7,0.132]
[1753906294256,0.9174,3789.8,3789.4,4.414]
[1753906294567,1.59540865,3789.7,3789.4,4.414]
[1753906294967,1.14070865,3789.7,3789.4,4.414]
[1753906296559,0.4627,3789.6,3789.4,0.132]
[1753906296768,0.90494932,3789.6,3789.4,0.132]
[1753906296937,1.2901,3789.5,3789.0,4.281]
[1753906297143,0.4627,3789.4,3788.9,4.413]
[1753906297670,0.4627,3789.3,3788.9,0.132]
[1753906298172,0.4627,3789.2,3788.7,4.281]
[1753906298473,0.2542358,3789.4,3788.8,0.4564]
[1753906298638,0.3862358,3789.4,3788.9,0.132]
[1753906298829,0.45238851,3789.3,3788.9,0.5884]
[1753906299273,0.45238851,3789.3,3788.9,4.8694]
[1753906299660,0.45238851,3789.3,3788.9,4.413]
[1753906300839,0.45238851,3789.3,3788.9,4.8694]
[1753906301070,0.16660243,3789.2,3788.9,4.8694]
[1753906301448,0.8274,3789.5,3789.0,0.4564]
[1753906301651,0.8274,3789.5,3789.1,0.132]
[1753906302160,30.0,3789.5,3789.1,0.5884]
[1753906303380,30.0,3789.5,3789.1,0.132]
[1753906303678,2.57026461,3789.4,3789.1,0.132]
[1753906303901,30.0,3789.5,3789.1,0.132]
[1753906304439,30.0,3789.2,3788.8,0.001]
[1753906304653,0.8274,3789.3,3788.8,0.001]
[1753906304654,30.0,3789.0,3788.8,0.001]
[1753906304884,2.57026461,3788.9,3788.8,0.001]
[1753906305042,0.8274,3789.3,3788.9,0.132]
[1753906305238,0.132,3789.7,3789.1,0.132]
[1753906305554,3.002,3789.9,3789.5,0.132]
[1753906305749,1.2094702,3789.8,3789.5,0.132]
[1753906305942,0.002,3789.9,3789.6,0.4564]
[1753906306148,0.002,3789.9,3789.8,0.132]
[1753906306572,0.002,3789.9,3789.8,0.5884]
[1753906310178,0.7692602,3789.9,3789.1,0.8145]
[1753906310405,0.7692602,3789.9,3789.8,0.132]
[1753906310589,0.7692602,3789.9,3788.8,0.001]
[1753906310590,0.8274,3789.8,3789.3,0.132]
[1753906310789,1.67138622,3789.8,3789.3,0.132]
[1753906311197,0.447,3789.7,3789.3,0.132]
[1753906311411,0.447,3789.6,3789.3,0.132]
[1753906311796,1.67138622,3789.8,3789.3,0.132]
[1753906312000,0.447,3789.5,3789.3,0.132]
[1753906312517,1.24759882,3789.7,3789.3,0.132]
[1753906312696,0.4781,3789.5,3789.3,0.132]
[1753906313997,1.72569882,3789.7,3789.3,0.132]
[1753906314320,0.6978085,3789.6,3789.3,0.132]
[1753906314607,1.1759085,3789.6,3789.3,0.132]
[1753906314811,0.4781,3789.6,3789.3,0.132]
[1753906315111,0.4781,3789.5,3789.3,0.132]
[1753906316115,0.4781,3789.4,3789.3,0.132]
[1753906317273,0.9251,3789.4,3789.1,0.132]
[1753906317478,0.9251,3789.3,3789.1,0.132]
[1753906317718,0.9251,3789.3,3788.8,0.001]
[1753906317922,3.0,3788.9,3788.8,0.001]
[1753906318388,0.9251,3788.9,3788.8,0.001]
[1753906319520,33.9251,3788.9,3788.8,0.001]
[1753906320122,33.4781,3788.9,3788.8,0.001]
[1753906320321,3.6101,3788.9,3788.8,0.001]
[1753906320540,4.54311,3788.9,3788.8,0.001]
[1753906320826,34.54311,3788.9,3788.8,0.001]
[1753906323334,5.34611,3788.9,3788.8,0.001]
[1753906323512,35.34611,3788.9,3788.8,0.001]
[1753906323718,4.89911,3788.9,3788.8,0.001]
[1753906323935,5.34611,3788.9,3788.8,0.001]
[1753906324701,35.34611,3788.9,3788.8,0.001]
[1753906325043,5.34611,3788.9,3788.8,0.001]
[1753906325655,4.89911,3788.9,3788.8,0.001]
[1753906325856,1.89911,3788.9,3788.8,0.001]
[1753906326032,31.89911,3788.9,3788.8,0.001]
[1753906326232,1.89911,3788.9,3788.8,0.001]
[1753906326419,0.132,3789.0,3788.8,0.001]
[1753906326622,0.4781,3788.9,3788.8,0.001]
[1753906327157,30.9251,3788.9,3788.8,0.001]
[1753906327338,49.50385019,3788.9,3788.8,0.001]
[1753906328249,49.60969819,3788.9,3788.8,0.001]
[1753906328451,52.1799628,3788.9,3788.8,0.001]
[1753906328959,46.31821261,3788.9,3788.8,0.001]
[1753906329324,16.31821261,3788.9,3788.8,0.001]
[1753906329550,46.31821261,3788.9,3788.8,0.001]
[1753906329749,49.31821261,3788.9,3788.8,0.001]
[1753906330561,49.31721261,3788.9,3788.8,0.001]
[1753906332129,30.0,3788.7,3788.1,0.04]
[1753906332357,3.0,3788.3,3788.1,0.04]
[1753906332534,34.405,3788.2,3788.1,0.04]
[1753906332860,37.405,3788.2,3788.1,0.04]
[1753906333061,37.8831,3788.2,3788.1,0.04]
[1753906333276,40.45336461,3788.2,3788.1,0.04]
[1753906333627,35.70226461,3788.2,3788.1,0.04]
[1753906333987,3.0,3788.3,3788.1,0.5339]
[1753906334268,3.132,3788.3,3788.2,0.4721]
[1753906334565,0.132,3788.3,3788.2,0.966]
[1753906334866,30.0,3788.8,3788.2,0.966]
[1753906335068,30.0,3788.7,3788.1,0.172]
[1753906335274,7.09,3788.9,3788.4,0.9645]
[1753906335448,11.362,3788.9,3788.5,0.966]
[1753906335770,0.132,3788.8,3788.3,0.132]
[1753906336151,0.132,3788.8,3788.3,0.6259]
[1753906336347,0.132,3788.8,3788.4,0.4939]
[1753906336749,0.132,3788.8,3788.3,0.132]
[1753906336949,0.132,3788.8,3788.5,0.4785]
[1753906338144,0.132,3788.8,3788.5,0.4724]
[1753906339249,0.132,3788.8,3788.3,0.132]
[1753906339500,0.132,3788.8,3788.6,0.4724]
[1753906339684,7.46734528,3788.9,3788.3,0.132]
[1753906339885,7.46734528,3788.9,3788.4,0.9509]
[1753906340057,7.46734528,3788.9,3788.5,0.9509]
[1753906343376,7.46734528,3788.9,3788.5,0.4724]
[1753906343900,7.94354528,3788.9,3788.5,0.4724]
[1753906344101,7.94354528,3788.9,3788.3,0.132]
[1753906344664,3.0,3788.7,3788.3,0.132]
[1753906344866,3.0,3788.7,3788.1,0.04]
[1753906344867,3.803,3788.5,3788.1,0.04]
[1753906345078,0.132,3788.4,3788.1,0.04]
[1753906345272,0.4762,3788.3,3788.1,0.04]
[1753906345485,4.8514,3788.4,3788.1,0.04]
[1753906345763,0.9276,3788.2,3788.1,0.04]
[1753906346004,7.8762,3788.2,3788.1,0.04]
[1753906346476,8.3276,3788.2,3788.1,0.04]
[1753906346672,7.8762,3788.2,3788.1,0.04]
[1753906346891,7.4,3788.2,3788.1,0.04]
[1753906347093,4.4,3788.5,3788.1,0.5124]
[1753906347287,3.0,3788.4,3788.2,0.9509]
[1753906347478,3.0,3788.4,3788.3,0.4724]
[1753906347909,3.0,3788.6,3788.3,0.4724]
[1753906348109,4.26365998,3788.6,3788.3,0.4724]
[1753906348507,3.0,3788.6,3788.4,0.9509]
[1753906348824,0.132,3788.7,3788.4,0.9509]
[1753906349597,4.23475453,3788.8,3788.4,0.9509]
[1753906349814,3.0,3788.6,3788.4,0.9509]
[1753906350510,3.0,3788.6,3788.4,0.4724]
[1753906350692,5.57026461,3788.6,3788.1,1.1229]
[1753906351027,5.57026461,3788.6,3788.2,0.9509]
[1753906351401,5.57026461,3788.6,3788.2,0.4724]
[1753906351823,6.04646461,3788.6,3788.1,0.172]
[1753906352127,1.09404646,3788.5,3788.1,0.172]
[1753906353549,0.61784646,3788.5,3788.1,0.172]
[1753906353846,0.61784646,3788.5,3788.2,0.4724]
[1753906354356,3.0,3788.6,3788.2,0.9509]
[1753906354647,3.4762,3788.6,3788.1,0.172]
[1753906354810,0.4762,3788.5,3788.1,0.172]
[1753906357820,0.9276,3788.4,3788.1,0.172]
[1753906358135,3.39276,3788.3,3788.1,0.04]
[1753906358445,34.8715,3788.2,3788.1,0.04]
[1753906358610,4.8715,3788.2,3788.1,0.04]
[1753906358807,9.1345,3788.2,3788.1,0.04]
[1753906359009,3.0,3788.2,3788.1,0.04]
[1753906359236,4.4354,3788.2,3788.1,0.04]
[1753906359435,4.9116,3788.2,3788.1,0.04]
[1753906360415,4.4354,3788.2,3788.1,0.04]
[1753906360651,3.0,3788.2,3788.1,0.04]
[1753906362323,7.09,3788.3,3788.1,0.9909]
[1753906362525,7.09,3788.3,3788.1,0.04]
[1753906363048,7.09,3788.3,3788.2,0.8262]
[1753906363225,7.09,3788.3,3788.2,1.7771]
[1753906363426,7.222,3788.7,3788.2,1.7771]
[1753906363728,8.22295453,3788.7,3788.2,1.7771]
[1753906364519,7.09,3788.7,3788.3,0.9509]
[1753906364717,7.09,3788.7,3788.2,0.8262]
[1753906365060,7.09,3789.0,3788.4,0.132]
[1753906365218,0.4762,3789.0,3788.4,0.132]
[1753906366264,0.002,3788.7,3788.4,0.132]
[1753906366560,0.002,3788.7,3788.2,0.8262]
[1753906366716,0.4534,3788.7,3788.5,0.132]
[1753906366915,0.002,3788.7,3788.5,0.132]
[1753906367864,0.002,3788.7,3788.6,0.9115]
[1753906370660,0.002,3788.7,3788.6,0.4288]
[1753906371368,0.002,3788.7,3788.5,0.132]
[1753906372375,0.4534,3788.7,3788.5,0.132]